[Event "Early-Titled-Tuesday-Blitz-March-05-2024"]
[Site "Chess.com"]
[Date "2024.03.05"]
[Round "4"]
[White "Masterbeaterr"]
[Black "tarno17"]
[Result "1-0"]
[WhiteElo "2447"]
[BlackElo "2152"]
[TimeControl "180+1"]
[EndTime "8:40:37 PST"]
[Termination "Masterbeaterr won by checkmate"]

1. d4 {[%clk 0:03:00.9]} 1... d5 {[%clk 0:02:55.2]} 2. c4 {[%clk 0:02:56.1]}
2... e6 {[%clk 0:02:54.6]} 3. Nc3 {[%clk 0:02:55.7]} 3... Nf6 {[%clk 0:02:55]}
4. Bg5 {[%clk 0:02:54.5]} 4... Be7 {[%clk 0:02:55]} 5. e3 {[%clk 0:02:54.3]}
5... h6 {[%clk 0:02:54.7]} 6. Bh4 {[%clk 0:02:53.9]} 6... O-O {[%clk 0:02:54.2]}
7. Nf3 {[%clk 0:02:52.4]} 7... b6 {[%clk 0:02:54.8]} 8. cxd5 {[%clk 0:02:51.7]}
8... exd5 {[%clk 0:02:54.4]} 9. Bd3 {[%clk 0:02:51.1]} 9... Bb7 {[%clk
0:02:52.5]} 10. O-O {[%clk 0:02:50.4]} 10... Nbd7 {[%clk 0:02:50.9]} 11. Rc1
{[%clk 0:02:47.7]} 11... Ne4 {[%clk 0:02:35.3]} 12. Bxe7 {[%clk 0:02:46.2]}
12... Qxe7 {[%clk 0:02:34.6]} 13. Bb1 {[%clk 0:02:44.8]} 13... Ndf6 {[%clk
0:02:12.6]} 14. Ne5 {[%clk 0:02:42.7]} 14... c5 {[%clk 0:02:03.5]} 15. f3 {[%clk
0:02:35.1]} 15... Nxc3 {[%clk 0:01:46.2]} 16. bxc3 {[%clk 0:02:33.2]} 16... Rac8
{[%clk 0:01:34.3]} 17. Qd3 {[%clk 0:02:30.6]} 17... cxd4 {[%clk 0:01:30.5]} 18.
cxd4 {[%clk 0:02:29]} 18... Rc7 {[%clk 0:01:23.3]} 19. Rxc7 {[%clk 0:02:26.6]}
19... Qxc7 {[%clk 0:01:24.2]} 20. Ng4 {[%clk 0:02:26.4]} 20... Re8 {[%clk
0:00:51.1]} 21. Nxf6+ {[%clk 0:02:23.4]} 21... gxf6 {[%clk 0:00:51.1]} 22. Qh7+
{[%clk 0:02:22.6]} 22... Kf8 {[%clk 0:00:50.8]} 23. Qxh6+ {[%clk 0:02:23.5]}
23... Ke7 {[%clk 0:00:51.4]} 24. e4 {[%clk 0:02:09.8]} 24... Qb8 {[%clk
0:00:28.6]} 25. Re1 {[%clk 0:02:02]} 25... Rh8 {[%clk 0:00:24.7]} 26. exd5+
{[%clk 0:02:02.2]} 26... Kd7 {[%clk 0:00:23.7]} 27. Bf5+ {[%clk 0:01:56.1]}
27... Kd6 {[%clk 0:00:18.5]} 28. Qxf6+ {[%clk 0:01:53.2]} 28... Kxd5 {[%clk
0:00:18.9]} 29. Qxf7+ {[%clk 0:01:45.2]} 29... Kxd4 {[%clk 0:00:15.1]} 30. Qd7+
{[%clk 0:01:41.5]} 30... Bd5 {[%clk 0:00:14.3]} 31. Rd1+ {[%clk 0:01:40.6]}
31... Kc3 {[%clk 0:00:14.9]} 32. Qxd5 {[%clk 0:01:33.5]} 32... Qxh2+ {[%clk
0:00:15.3]} 33. Kf2 {[%clk 0:01:33.9]} 33... Qh4+ {[%clk 0:00:15.8]} 34. Ke2
{[%clk 0:01:31.7]} 34... Re8+ {[%clk 0:00:14]} 35. Be4 {[%clk 0:01:31.7]} 35...
Qf4 {[%clk 0:00:08.3]} 36. Qb3# {[%clk 0:01:23.4]} 1-0

[Event "Early-Titled-Tuesday-Blitz-March-05-2024"]
[Site "Chess.com"]
[Date "2024.03.05"]
[Round "4"]
[White "GoValya"]
[Black "Der_Balak_3Halak"]
[Result "0-1"]
[WhiteElo "2246"]
[BlackElo "2470"]
[TimeControl "180+1"]
[EndTime "8:40:39 PST"]
[Termination "Der_Balak_3Halak won by resignation"]

1. d4 {[%clk 0:03:00.9]} 1... d5 {[%clk 0:03:00.3]} 2. Nf3 {[%clk 0:03:00.6]}
2... Nf6 {[%clk 0:03:00.3]} 3. g3 {[%clk 0:03:00.9]} 3... c6 {[%clk 0:03:00.2]}
4. c4 {[%clk 0:03:01.1]} 4... e6 {[%clk 0:03:00.4]} 5. Bg2 {[%clk 0:03:01.6]}
5... Be7 {[%clk 0:03:00.7]} 6. O-O {[%clk 0:03:02.1]} 6... O-O {[%clk
0:03:01.3]} 7. Nc3 {[%clk 0:03:02.4]} 7... Nbd7 {[%clk 0:03:00.2]} 8. Nd2 {[%clk
0:03:00.3]} 8... b6 {[%clk 0:02:59.2]} 9. e4 {[%clk 0:02:59.4]} 9... dxe4 {[%clk
0:03:00.1]} 10. Ndxe4 {[%clk 0:02:59.5]} 10... Bb7 {[%clk 0:03:00.2]} 11. Qc2
{[%clk 0:02:47.6]} 11... Nxe4 {[%clk 0:02:48.5]} 12. Nxe4 {[%clk 0:02:43.8]}
12... Nf6 {[%clk 0:02:48.9]} 13. Rd1 {[%clk 0:02:41.8]} 13... Rc8 {[%clk
0:02:45.2]} 14. Bf4 {[%clk 0:02:34.8]} 14... Qd7 {[%clk 0:02:43.8]} 15. Rac1
{[%clk 0:02:25.1]} 15... Rfd8 {[%clk 0:02:41.2]} 16. a3 {[%clk 0:02:12.7]} 16...
g6 {[%clk 0:02:15.4]} 17. b4 {[%clk 0:02:02.8]} 17... Nxe4 {[%clk 0:02:15.1]}
18. Qxe4 {[%clk 0:01:54]} 18... Bf6 {[%clk 0:02:13.8]} 19. Be5 {[%clk
0:01:32.8]} 19... Bxe5 {[%clk 0:02:08.7]} 20. Qxe5 {[%clk 0:01:33.7]} 20... c5
{[%clk 0:02:02.2]} 21. Bxb7 {[%clk 0:01:23.6]} 21... Qxb7 {[%clk 0:01:59.2]} 22.
bxc5 {[%clk 0:01:19.8]} 22... bxc5 {[%clk 0:01:56.4]} 23. dxc5 {[%clk
0:00:34.8]} 23... Rxd1+ {[%clk 0:01:24.2]} 24. Rxd1 {[%clk 0:00:35.7]} 24... Qf3
{[%clk 0:01:23.4]} 25. Rd7 {[%clk 0:00:16.1]} 25... Qxa3 {[%clk 0:01:16.1]} 26.
c6 {[%clk 0:00:13.1]} 26... Qc1+ {[%clk 0:01:15.7]} 27. Kg2 {[%clk 0:00:12.7]}
27... Qxc4 {[%clk 0:01:16.1]} 28. c7 {[%clk 0:00:12.8]} 28... Qc6+ {[%clk
0:01:16.2]} 0-1

[Event "Early-Titled-Tuesday-Blitz-March-05-2024"]
[Site "Chess.com"]
[Date "2024.03.05"]
[Round "4"]
[White "Casper"]
[Black "ElVital"]
[Result "1-0"]
[WhiteElo "2522"]
[BlackElo "2344"]
[TimeControl "180+1"]
[EndTime "8:40:45 PST"]
[Termination "Casper won by checkmate"]

1. e4 {[%clk 0:02:52.5]} 1... c5 {[%clk 0:02:59.3]} 2. d4 {[%clk 0:02:52.5]}
2... cxd4 {[%clk 0:02:59.3]} 3. Qxd4 {[%clk 0:02:53.4]} 3... Nc6 {[%clk
0:02:59.2]} 4. Qe3 {[%clk 0:02:54]} 4... g6 {[%clk 0:02:58.5]} 5. Nc3 {[%clk
0:02:54.4]} 5... Bg7 {[%clk 0:02:58.5]} 6. Bd2 {[%clk 0:02:55]} 6... d6 {[%clk
0:02:55.8]} 7. O-O-O {[%clk 0:02:55.6]} 7... Be6 {[%clk 0:02:54.8]} 8. h4 {[%clk
0:02:56]} 8... Qa5 {[%clk 0:02:50.6]} 9. a3 {[%clk 0:02:52.4]} 9... Rc8 {[%clk
0:02:46.7]} 10. Nd5 {[%clk 0:02:51.6]} 10... Qd8 {[%clk 0:02:39]} 11. Bc3 {[%clk
0:02:52.1]} 11... Bxc3 {[%clk 0:02:30]} 12. Qxc3 {[%clk 0:02:51.6]} 12... f6
{[%clk 0:02:27.8]} 13. h5 {[%clk 0:02:50.4]} 13... Ne5 {[%clk 0:02:27.7]} 14.
Bb5+ {[%clk 0:02:48.8]} 14... Kf7 {[%clk 0:02:27.2]} 15. hxg6+ {[%clk
0:02:46.8]} 15... hxg6 {[%clk 0:02:27]} 16. Rxh8 {[%clk 0:02:47.7]} 16... Rxc3
{[%clk 0:02:25.5]} 17. Nxc3 {[%clk 0:02:48.6]} 17... Qb6 {[%clk 0:02:15.9]} 18.
Nge2 {[%clk 0:02:40.9]} 18... Qxf2 {[%clk 0:02:00.9]} 19. Rdh1 {[%clk
0:02:41.4]} 19... Qxg2 {[%clk 0:01:46.5]} 20. R1h7+ {[%clk 0:02:38.6]} 20... Kf8
{[%clk 0:01:46.4]} 21. Nf4 {[%clk 0:02:33.2]} 21... Qg5 {[%clk 0:01:45.6]} 22.
Ne2 {[%clk 0:02:30.3]} 22... Bf7 {[%clk 0:01:39.5]} 23. Kb1 {[%clk 0:02:20.9]}
23... a6 {[%clk 0:01:35]} 24. Ba4 {[%clk 0:02:16.8]} 24... Qg4 {[%clk
0:01:26.3]} 25. Bb3 {[%clk 0:02:14.7]} 25... e6 {[%clk 0:01:13.3]} 26. Rxf7+
{[%clk 0:02:05.3]} 26... Nxf7 {[%clk 0:00:58]} 27. Nxe6+ {[%clk 0:02:04.2]}
27... Ke7 {[%clk 0:00:56.4]} 28. Rxg8 {[%clk 0:02:04.7]} 28... Qxe2 {[%clk
0:00:51.3]} 29. Rg7 {[%clk 0:02:05.3]} 29... Qxe4 {[%clk 0:00:34.7]} 30. Rxf7+
{[%clk 0:02:04.7]} 30... Ke8 {[%clk 0:00:23.9]} 31. Rxf6 {[%clk 0:01:56.4]}
31... Qe1+ {[%clk 0:00:19.2]} 32. Ka2 {[%clk 0:01:56.1]} 32... Qg3 {[%clk
0:00:15.2]} 33. Bd5 {[%clk 0:01:52]} 33... g5 {[%clk 0:00:15]} 34. Rg6 {[%clk
0:01:49.1]} 34... g4 {[%clk 0:00:14.6]} 35. Bxb7 {[%clk 0:01:46.8]} 35... Ke7
{[%clk 0:00:14.4]} 36. Nd4 {[%clk 0:01:45.5]} 36... Qf4 {[%clk 0:00:13.1]} 37.
c3 {[%clk 0:01:41.9]} 37... g3 {[%clk 0:00:13.1]} 38. Bd5 {[%clk 0:01:34.9]}
38... Kd7 {[%clk 0:00:10.9]} 39. Rg7+ {[%clk 0:01:33.8]} 39... Kc8 {[%clk
0:00:09.2]} 40. Bb7+ {[%clk 0:01:33.3]} 40... Kb8 {[%clk 0:00:05.3]} 41. Nc6#
{[%clk 0:01:33.6]} 1-0

[Event "Early-Titled-Tuesday-Blitz-March-05-2024"]
[Site "Chess.com"]
[Date "2024.03.05"]
[Round "4"]
[White "the_blue_pill"]
[Black "kleopl"]
[Result "0-1"]
[WhiteElo "2347"]
[BlackElo "2525"]
[TimeControl "180+1"]
[EndTime "8:40:48 PST"]
[Termination "kleopl won by resignation"]

1. e4 {[%clk 0:03:00.9]} 1... c5 {[%clk 0:02:59.6]} 2. Nf3 {[%clk 0:03:00.3]}
2... d6 {[%clk 0:02:59.9]} 3. d4 {[%clk 0:02:56.9]} 3... cxd4 {[%clk 0:03:00.8]}
4. Nxd4 {[%clk 0:02:57.3]} 4... Nf6 {[%clk 0:03:01.1]} 5. Nc3 {[%clk 0:02:57.8]}
5... a6 {[%clk 0:03:01]} 6. Be3 {[%clk 0:02:58.2]} 6... e5 {[%clk 0:03:00.5]} 7.
Nb3 {[%clk 0:02:58.9]} 7... Be7 {[%clk 0:03:00.7]} 8. Qd2 {[%clk 0:02:59.5]}
8... Ng4 {[%clk 0:02:58.3]} 9. g3 {[%clk 0:02:59.1]} 9... Be6 {[%clk 0:02:54.6]}
10. O-O-O {[%clk 0:02:58.5]} 10... Nxe3 {[%clk 0:02:54.5]} 11. Qxe3 {[%clk
0:02:58.4]} 11... Nd7 {[%clk 0:02:54.5]} 12. f4 {[%clk 0:02:58.7]} 12... b5
{[%clk 0:02:54.6]} 13. Kb1 {[%clk 0:02:58.9]} 13... Qb6 {[%clk 0:02:53.6]} 14.
Qf3 {[%clk 0:02:46.5]} 14... Nf6 {[%clk 0:02:51.9]} 15. f5 {[%clk 0:02:46.4]}
15... Bc4 {[%clk 0:02:49.2]} 16. g4 {[%clk 0:02:41.1]} 16... h6 {[%clk
0:02:40.2]} 17. h4 {[%clk 0:02:39.9]} 17... b4 {[%clk 0:02:11.8]} 18. Bxc4
{[%clk 0:02:24.2]} 18... bxc3 {[%clk 0:02:11.7]} 19. g5 {[%clk 0:02:24.7]} 19...
Nd7 {[%clk 0:02:01]} 20. g6 {[%clk 0:02:15.7]} 20... fxg6 {[%clk 0:01:51.7]} 21.
fxg6 {[%clk 0:02:13.2]} 21... Rf8 {[%clk 0:01:47.8]} 22. Bf7+ {[%clk 0:02:12]}
22... Kd8 {[%clk 0:01:47.7]} 23. Qxc3 {[%clk 0:02:08.9]} 23... Rc8 {[%clk
0:01:47.6]} 24. Qd3 {[%clk 0:02:01.9]} 24... a5 {[%clk 0:01:43.6]} 25. Nd2
{[%clk 0:01:41.9]} 25... Nc5 {[%clk 0:01:40.1]} 26. Qd5 {[%clk 0:01:21.5]} 26...
Rb8 {[%clk 0:01:39.7]} 27. Nc4 {[%clk 0:01:16]} 27... Qb5 {[%clk 0:01:27.2]} 28.
b3 {[%clk 0:01:12.2]} 28... Na4 {[%clk 0:01:02.4]} 29. Qxb5 {[%clk 0:00:57.9]}
29... Nc3+ {[%clk 0:01:02.1]} 30. Ka1 {[%clk 0:00:44.1]} 30... Rxb5 {[%clk
0:00:54]} 31. Nxd6 {[%clk 0:00:36.8]} 31... Nxd1 {[%clk 0:00:53.3]} 32. Nxb5
{[%clk 0:00:34.5]} 32... Nf2 {[%clk 0:00:52.2]} 33. Rd1+ {[%clk 0:00:32.4]}
33... Nxd1 {[%clk 0:00:51.7]} 0-1

[Event "Early-Titled-Tuesday-Blitz-March-05-2024"]
[Site "Chess.com"]
[Date "2024.03.05"]
[Round "4"]
[White "ChristianArca"]
[Black "Statham_01"]
[Result "1-0"]
[WhiteElo "2709"]
[BlackElo "2527"]
[TimeControl "180+1"]
[EndTime "8:40:49 PST"]
[Termination "ChristianArca won on time"]

1. d4 {[%clk 0:02:56.2]} 1... e6 {[%clk 0:02:57.6]} 2. Bf4 {[%clk 0:02:56]} 2...
b6 {[%clk 0:02:57.1]} 3. e3 {[%clk 0:02:55.9]} 3... Bb7 {[%clk 0:02:57.3]} 4.
Nf3 {[%clk 0:02:55.6]} 4... f5 {[%clk 0:02:57.6]} 5. Bd3 {[%clk 0:02:55.5]} 5...
Nf6 {[%clk 0:02:57.9]} 6. h3 {[%clk 0:02:56]} 6... Be7 {[%clk 0:02:55.1]} 7. O-O
{[%clk 0:02:56.4]} 7... O-O {[%clk 0:02:54.3]} 8. c4 {[%clk 0:02:57.1]} 8... Ne4
{[%clk 0:02:53.9]} 9. Nc3 {[%clk 0:02:56.4]} 9... d6 {[%clk 0:02:52.7]} 10. Rc1
{[%clk 0:02:51.8]} 10... Nd7 {[%clk 0:02:52.5]} 11. a3 {[%clk 0:02:45.2]} 11...
a5 {[%clk 0:02:50.8]} 12. Qe2 {[%clk 0:02:23.4]} 12... Ndf6 {[%clk 0:02:49.6]}
13. Rfd1 {[%clk 0:02:21.5]} 13... Nxc3 {[%clk 0:02:49.1]} 14. Rxc3 {[%clk
0:02:20.4]} 14... Ne4 {[%clk 0:02:49.7]} 15. Rcc1 {[%clk 0:02:20.9]} 15... g5
{[%clk 0:02:43.9]} 16. Bh2 {[%clk 0:02:20.8]} 16... g4 {[%clk 0:02:43.5]} 17.
Bxe4 {[%clk 0:02:14.3]} 17... Bxe4 {[%clk 0:02:05.9]} 18. hxg4 {[%clk
0:02:13.4]} 18... Kh8 {[%clk 0:01:29.3]} 19. d5 {[%clk 0:02:05.2]} 19... fxg4
{[%clk 0:00:52.3]} 20. Nd4 {[%clk 0:02:00.6]} 20... Bh4 {[%clk 0:00:37.8]} 21.
Nxe6 {[%clk 0:01:48.3]} 21... Rxf2 {[%clk 0:00:15.3]} 22. Qxg4 {[%clk
0:01:45.2]} 22... Rxg2+ {[%clk 0:00:07.7]} 23. Qxg2 {[%clk 0:01:45.5]} 23...
Bf2+ {[%clk 0:00:06.7]} 24. Qxf2 {[%clk 0:01:34.1]} 24... Qg8+ {[%clk 0:00:06]}
25. Qg3 {[%clk 0:01:32.5]} 25... Qf7 {[%clk 0:00:03.9]} 26. Rf1 {[%clk
0:01:32.2]} 26... Qe7 {[%clk 0:00:04.3]} 27. Rf4 {[%clk 0:01:30.3]} 27... Rg8
{[%clk 0:00:04.1]} 28. Qxg8+ {[%clk 0:01:27.3]} 28... Kxg8 {[%clk 0:00:04.2]}
29. Rcf1 {[%clk 0:01:27.9]} 29... h5 {[%clk 0:00:01.9]} 30. Rf8+ {[%clk
0:01:28]} 30... Qxf8 {[%clk 0:00:01.9]} 31. Rxf8+ {[%clk 0:01:28.9]} 1-0

[Event "Early-Titled-Tuesday-Blitz-March-05-2024"]
[Site "Chess.com"]
[Date "2024.03.05"]
[Round "4"]
[White "Talcrifice"]
[Black "RobertoJBM"]
[Result "0-1"]
[WhiteElo "2578"]
[BlackElo "2844"]
[TimeControl "180+1"]
[EndTime "8:40:53 PST"]
[Termination "RobertoJBM won by resignation"]

1. d4 {[%clk 0:02:55.5]} 1... d5 {[%clk 0:03:00.1]} 2. c4 {[%clk 0:02:55.2]}
2... c6 {[%clk 0:03:00]} 3. Nc3 {[%clk 0:02:55.6]} 3... Nf6 {[%clk 0:02:59.7]}
4. e3 {[%clk 0:02:55.8]} 4... a6 {[%clk 0:02:58.9]} 5. Nf3 {[%clk 0:02:54.8]}
5... Bf5 {[%clk 0:02:58.5]} 6. Qb3 {[%clk 0:02:52.6]} 6... Ra7 {[%clk
0:02:58.2]} 7. Nh4 {[%clk 0:02:45.5]} 7... Be6 {[%clk 0:02:48.2]} 8. c5 {[%clk
0:02:38.2]} 8... g6 {[%clk 0:02:47.4]} 9. Be2 {[%clk 0:02:36.5]} 9... Bg7 {[%clk
0:02:45.8]} 10. O-O {[%clk 0:02:31.4]} 10... O-O {[%clk 0:02:45.9]} 11. Bd2
{[%clk 0:02:30.8]} 11... Nbd7 {[%clk 0:02:42.8]} 12. Nf3 {[%clk 0:02:29.6]}
12... Bg4 {[%clk 0:02:42.3]} 13. Qc2 {[%clk 0:02:13.2]} 13... Bxf3 {[%clk
0:02:28.5]} 14. Bxf3 {[%clk 0:02:12.8]} 14... e5 {[%clk 0:02:29.4]} 15. b4
{[%clk 0:02:05.6]} 15... Re8 {[%clk 0:02:24.9]} 16. Rab1 {[%clk 0:02:05]} 16...
h5 {[%clk 0:02:21.5]} 17. g3 {[%clk 0:02:03.5]} 17... e4 {[%clk 0:02:16.8]} 18.
Bg2 {[%clk 0:02:00.4]} 18... Nh7 {[%clk 0:02:15]} 19. h4 {[%clk 0:01:56.5]}
19... g5 {[%clk 0:02:12.6]} 20. hxg5 {[%clk 0:01:54.6]} 20... Nxg5 {[%clk
0:02:11]} 21. f3 {[%clk 0:01:46.8]} 21... f5 {[%clk 0:02:03.9]} 22. f4 {[%clk
0:01:43.7]} 22... Nf7 {[%clk 0:01:50.4]} 23. Kf2 {[%clk 0:01:43.1]} 23... Nf6
{[%clk 0:01:49.8]} 24. Bh3 {[%clk 0:01:41.3]} 24... Nh6 {[%clk 0:01:49.7]} 25.
Rh1 {[%clk 0:01:39.5]} 25... Kf7 {[%clk 0:01:48.8]} 26. a4 {[%clk 0:01:37.4]}
26... Rg8 {[%clk 0:01:44.9]} 27. b5 {[%clk 0:01:36]} 27... axb5 {[%clk
0:01:44.9]} 28. axb5 {[%clk 0:01:36.9]} 28... Qd7 {[%clk 0:01:42.7]} 29. Rb2
{[%clk 0:01:32.8]} 29... Bf8 {[%clk 0:01:34.6]} 30. bxc6 {[%clk 0:01:30.6]}
30... bxc6 {[%clk 0:01:34.1]} 31. Rhb1 {[%clk 0:01:27.7]} 31... Be7 {[%clk
0:01:32.2]} 32. Rb8 {[%clk 0:01:23.7]} 32... Nhg4+ {[%clk 0:01:11.7]} 33. Ke2
{[%clk 0:01:19.4]} 33... Rxb8 {[%clk 0:01:02.6]} 34. Rxb8 {[%clk 0:01:18.4]}
34... Rb7 {[%clk 0:01:03.2]} 35. Rxb7 {[%clk 0:01:14.7]} 35... Qxb7 {[%clk
0:01:04.1]} 36. Qa4 {[%clk 0:01:14.7]} 36... Bd8 {[%clk 0:01:00]} 37. Na2 {[%clk
0:01:13.3]} 37... Ke6 {[%clk 0:00:57.3]} 38. Nb4 {[%clk 0:01:13.3]} 38... Kd7
{[%clk 0:00:57.5]} 39. Bxg4 {[%clk 0:01:13.2]} 39... fxg4 {[%clk 0:00:51.8]} 40.
Qc2 {[%clk 0:01:01]} 40... Qb5+ {[%clk 0:00:50.4]} 41. Kf2 {[%clk 0:01:00.9]}
41... h4 {[%clk 0:00:41.9]} 42. gxh4 {[%clk 0:00:58.6]} 42... Nh5 {[%clk
0:00:42.1]} 0-1

[Event "Early-Titled-Tuesday-Blitz-March-05-2024"]
[Site "Chess.com"]
[Date "2024.03.05"]
[Round "4"]
[White "Kumi29"]
[Black "tusplingher"]
[Result "1-0"]
[WhiteElo "2620"]
[BlackElo "2448"]
[TimeControl "180+1"]
[EndTime "8:40:54 PST"]
[Termination "Kumi29 won by resignation"]

1. d4 {[%clk 0:02:57.8]} 1... Nf6 {[%clk 0:02:59.7]} 2. Bg5 {[%clk 0:02:57.2]}
2... c6 {[%clk 0:02:59.1]} 3. Bxf6 {[%clk 0:02:51.5]} 3... exf6 {[%clk 0:02:59]}
4. c4 {[%clk 0:02:52.1]} 4... d5 {[%clk 0:02:59.1]} 5. cxd5 {[%clk 0:02:48]}
5... Qxd5 {[%clk 0:02:56.9]} 6. Nc3 {[%clk 0:02:47.4]} 6... Qd8 {[%clk
0:02:49.2]} 7. e4 {[%clk 0:02:42.5]} 7... f5 {[%clk 0:02:48.9]} 8. Bc4 {[%clk
0:02:38.3]} 8... Be7 {[%clk 0:02:28.8]} 9. Nf3 {[%clk 0:02:33.3]} 9... fxe4
{[%clk 0:02:25.8]} 10. Ne5 {[%clk 0:02:25.4]} 10... O-O {[%clk 0:02:12.3]} 11.
Qh5 {[%clk 0:02:02.1]} 11... Be6 {[%clk 0:02:08.6]} 12. Bxe6 {[%clk 0:01:58.1]}
12... fxe6 {[%clk 0:02:08.5]} 13. O-O-O {[%clk 0:01:50.4]} 13... Nd7 {[%clk
0:01:34.1]} 14. Nxe4 {[%clk 0:01:47.9]} 14... Nxe5 {[%clk 0:01:26.5]} 15. dxe5
{[%clk 0:01:47.9]} 15... Qa5 {[%clk 0:01:25.5]} 16. Rd7 {[%clk 0:01:08.7]} 16...
Qxa2 {[%clk 0:01:08.5]} 17. Rxe7 {[%clk 0:01:08.9]} 17... Qa1+ {[%clk
0:00:54.8]} 18. Kc2 {[%clk 0:01:09.1]} 18... Qa4+ {[%clk 0:00:20.6]} 19. Kd3
{[%clk 0:01:05.3]} 19... Rad8+ {[%clk 0:00:17.3]} 20. Nd6 {[%clk 0:01:05.6]}
20... Qb5+ {[%clk 0:00:17]} 21. Kc3 {[%clk 0:00:52.8]} 21... Rxd6 {[%clk
0:00:13.7]} 22. Rxg7+ {[%clk 0:00:53.2]} 22... Kxg7 {[%clk 0:00:12.7]} 23. Qg4+
{[%clk 0:00:49.9]} 23... Kh8 {[%clk 0:00:12.4]} 24. exd6 {[%clk 0:00:50]} 24...
Rxf2 {[%clk 0:00:09.9]} 25. Qd4+ {[%clk 0:00:49.1]} 1-0

[Event "Early-Titled-Tuesday-Blitz-March-05-2024"]
[Site "Chess.com"]
[Date "2024.03.05"]
[Round "4"]
[White "Kotofeyca"]
[Black "TheMagician"]
[Result "1-0"]
[WhiteElo "2455"]
[BlackElo "2183"]
[TimeControl "180+1"]
[EndTime "8:40:56 PST"]
[Termination "Kotofeyca won on time"]

1. d4 {[%clk 0:03:00.9]} 1... Nf6 {[%clk 0:02:58.9]} 2. c4 {[%clk 0:03:01]} 2...
e6 {[%clk 0:02:58.5]} 3. Nf3 {[%clk 0:03:00.3]} 3... Bb4+ {[%clk 0:02:53.3]} 4.
Nbd2 {[%clk 0:03:00.3]} 4... O-O {[%clk 0:02:49.9]} 5. a3 {[%clk 0:02:57.6]}
5... Be7 {[%clk 0:02:42.5]} 6. e4 {[%clk 0:02:53.9]} 6... d6 {[%clk 0:02:37.4]}
7. Bd3 {[%clk 0:02:45.6]} 7... c5 {[%clk 0:02:33.6]} 8. b4 {[%clk 0:02:22.3]}
8... cxd4 {[%clk 0:02:06.2]} 9. Nxd4 {[%clk 0:02:19.6]} 9... a5 {[%clk
0:01:58.2]} 10. Bb2 {[%clk 0:01:59.1]} 10... e5 {[%clk 0:01:35.2]} 11. Nb5
{[%clk 0:01:44.9]} 11... Nc6 {[%clk 0:01:13.2]} 12. Qb3 {[%clk 0:01:29.6]} 12...
Be6 {[%clk 0:00:43.1]} 13. O-O {[%clk 0:01:25.5]} 13... Qb6 {[%clk 0:00:36.5]}
14. Bc3 {[%clk 0:01:07.5]} 14... Rfd8 {[%clk 0:00:09.4]} 15. h3 {[%clk
0:00:51.4]} 15... Nh5 {[%clk 0:00:08.2]} 16. Rfe1 {[%clk 0:00:40]} 16... Nf4
{[%clk 0:00:07.8]} 17. Bf1 {[%clk 0:00:40.6]} 17... axb4 {[%clk 0:00:03.5]} 18.
axb4 {[%clk 0:00:40]} 18... Rxa1 {[%clk 0:00:04.1]} 19. Rxa1 {[%clk 0:00:38.9]}
1-0

[Event "Early-Titled-Tuesday-Blitz-March-05-2024"]
[Site "Chess.com"]
[Date "2024.03.05"]
[Round "4"]
[White "carloseduar100"]
[Black "only_strong_moves"]
[Result "0-1"]
[WhiteElo "2364"]
[BlackElo "2566"]
[TimeControl "180+1"]
[EndTime "8:40:58 PST"]
[Termination "only_strong_moves won by resignation"]

1. g3 {[%clk 0:02:56.1]} 1... g6 {[%clk 0:02:59]} 2. Bg2 {[%clk 0:02:54]} 2...
Bg7 {[%clk 0:02:59.6]} 3. Nf3 {[%clk 0:02:47.7]} 3... d6 {[%clk 0:03:00.5]} 4.
O-O {[%clk 0:02:47.8]} 4... Nf6 {[%clk 0:03:00]} 5. d4 {[%clk 0:02:48.7]} 5...
O-O {[%clk 0:03:00.6]} 6. c3 {[%clk 0:02:49]} 6... Nc6 {[%clk 0:02:59]} 7. Re1
{[%clk 0:02:47.5]} 7... e5 {[%clk 0:02:57.4]} 8. dxe5 {[%clk 0:02:40.8]} 8...
dxe5 {[%clk 0:02:58.3]} 9. Qxd8 {[%clk 0:02:40.6]} 9... Rxd8 {[%clk 0:02:59.2]}
10. Bg5 {[%clk 0:02:40.3]} 10... Bf5 {[%clk 0:02:56.1]} 11. Na3 {[%clk
0:02:39.8]} 11... h6 {[%clk 0:02:54.6]} 12. Bxf6 {[%clk 0:02:28.1]} 12... Bxf6
{[%clk 0:02:55.5]} 13. Nb5 {[%clk 0:02:28.3]} 13... a6 {[%clk 0:02:44.4]} 14.
Na3 {[%clk 0:01:44.8]} 14... e4 {[%clk 0:02:42.4]} 15. Nh4 {[%clk 0:01:36.5]}
15... Bxh4 {[%clk 0:02:42]} 16. gxh4 {[%clk 0:01:37.4]} 16... Rd7 {[%clk
0:02:33.5]} 17. e3 {[%clk 0:01:33.4]} 17... Ne5 {[%clk 0:02:27]} 18. Nc2 {[%clk
0:01:21.6]} 18... Rd2 {[%clk 0:02:20.1]} 19. Nd4 {[%clk 0:01:21.2]} 19... Rxb2
{[%clk 0:02:20.5]} 20. Reb1 {[%clk 0:01:18.6]} 20... Rxb1+ {[%clk 0:02:18.9]}
21. Rxb1 {[%clk 0:01:18.8]} 21... b6 {[%clk 0:02:17.6]} 22. h5 {[%clk
0:01:18.6]} 22... Rd8 {[%clk 0:02:14.2]} 23. h4 {[%clk 0:01:18.2]} 23... Rd6
{[%clk 0:02:08.9]} 24. hxg6 {[%clk 0:01:18]} 24... Bxg6 {[%clk 0:02:09.8]} 25.
Kf1 {[%clk 0:01:00.5]} 25... c5 {[%clk 0:02:06.7]} 26. Ne2 {[%clk 0:01:01.2]}
26... Nd3 {[%clk 0:02:05.2]} 27. a4 {[%clk 0:00:56.9]} 27... Kg7 {[%clk
0:02:00]} 28. Ng3 {[%clk 0:00:54]} 28... Re6 {[%clk 0:01:54.8]} 29. h5 {[%clk
0:00:53.5]} 29... Bh7 {[%clk 0:01:54.7]} 30. Ke2 {[%clk 0:00:50.8]} 30... f5
{[%clk 0:01:48.6]} 31. Bh3 {[%clk 0:00:50]} 31... Kf6 {[%clk 0:01:48.5]} 32. Rg1
{[%clk 0:00:49.7]} 32... b5 {[%clk 0:01:40.4]} 33. axb5 {[%clk 0:00:49.3]} 33...
axb5 {[%clk 0:01:41.3]} 34. Rb1 {[%clk 0:00:49.5]} 34... b4 {[%clk 0:01:40.1]}
35. cxb4 {[%clk 0:00:47.1]} 35... cxb4 {[%clk 0:01:41]} 36. f3 {[%clk 0:00:33]}
36... exf3+ {[%clk 0:01:32.8]} 37. Kxd3 {[%clk 0:00:22.9]} 37... f4+ {[%clk
0:01:32.4]} 38. e4 {[%clk 0:00:19.7]} 38... Rd6+ {[%clk 0:01:32.3]} 39. Kc4
{[%clk 0:00:14.3]} 39... fxg3 {[%clk 0:01:33.2]} 40. Rxb4 {[%clk 0:00:09.2]}
40... g2 {[%clk 0:01:31.7]} 41. Rb1 {[%clk 0:00:09.2]} 41... Bxe4 {[%clk
0:01:30.1]} 42. Kc5 {[%clk 0:00:09.1]} 42... Bxb1 {[%clk 0:01:29.4]} 0-1